fUST/lending_fUST_20260204
["ID","MTS","AMOUNT","RATE_DAILY","PERIOD"]
[404485892,1770204639031,-876.57088609,0.00016438,2]
[404485893,1770204639044,-876.57088609,0.00016438,2]
[404485894,1770204639056,-876.57088609,0.00016438,2]
[404485895,1770204639068,-876.57088609,0.00016438,2]
[404485896,1770204639079,-876.57088609,0.00016438,2]
[404485897,1770204639092,-876.57088609,0.00016438,2]
[404485898,1770204639108,-876.57088609,0.00016438,2]
[404485899,1770204639131,-876.57088609,0.00016438,2]
[404485900,1770204639160,-876.57088609,0.00016438,2]
[404485901,1770204639184,-161.21375838,0.00016438,2]
[404485902,1770204639199,-436.11709251,0.00016438,3]
[404485903,1770204639213,-644.85503351,0.00016438,2]
[404485904,1770204639226,-437.28381022,0.00016438,2]
[404485905,1770204639240,-150.0,0.00016438,2]
[404485906,1770204639254,-7008.15369226,0.00016489,2]
[404485907,1770204639267,-1450.9238254,0.00016496,2]
[404485908,1770204639280,-787.11085839,0.00016496,2]
[404485909,1770204639295,-151.0,0.000165,2]
[404485910,1770204639308,-151.0,0.000165,2]
[404485912,1770204639322,-1211.30886519,0.0001654,2]
[404485913,1770204639336,-168.0,0.0001655,2]
[404485914,1770204639348,-151.0,0.000166,2]
[404485915,1770204639360,-151.0,0.000166,2]
[404485916,1770204639372,-1211.30886519,0.000167,2]
[404485917,1770204639388,-151.0,0.000167,2]
[404485918,1770204639401,-151.0,0.000167,2]
[404485919,1770204639419,-300.0,0.00016746,2]
[404485920,1770204639433,-300.0,0.00016746,2]
[404485921,1770204639446,-500.0,0.00016768,2]
[404485922,1770204639457,-500.0,0.00016768,2]
[404485923,1770204639467,-500.0,0.00016768,2]
[404485924,1770204639478,-500.0,0.00016768,2]
[404485925,1770204639490,-500.0,0.00016768,2]
[404485926,1770204639502,-500.0,0.00016768,2]
[404485927,1770204639516,-250.0,0.00016768,2]
[404485928,1770204639528,-500.0,0.00016768,2]
[404485929,1770204639539,-250.0,0.00016768,2]
[404485931,1770204639549,-250.0,0.00016768,2]
[404485932,1770204639559,-500.0,0.00016768,2]
[404485933,1770204639570,-250.0,0.00016768,2]
[404485935,1770204639582,-500.0,0.00016768,2]
[404485937,1770204639595,-250.0,0.00016768,2]
[404485938,1770204639607,-250.0,0.00016768,2]
[404485939,1770204639617,-500.0,0.00016768,2]
[404485940,1770204639628,-250.0,0.00016768,2]
[404485941,1770204639638,-250.0,0.00016768,2]
[404485942,1770204639649,-500.0,0.00016768,2]
[404485943,1770204639661,-250.0,0.00016768,2]
[404485944,1770204639672,-1000.0,0.00016768,2]
[404485945,1770204639684,-250.0,0.00016768,2]
[404485947,1770204639695,-1000.0,0.00016768,2]
[404485949,1770204639709,-250.0,0.00016768,2]
[404485951,1770204639721,-250.0,0.00016768,2]
[404485953,1770204639732,-250.0,0.00016768,2]
[404485956,1770204639744,-1000.0,0.00016768,2]
[404485958,1770204639755,-250.0,0.00016768,2]
[404485960,1770204639766,-500.0,0.00016768,2]
[404485962,1770204639777,-250.0,0.00016768,2]
[404485964,1770204639790,-250.0,0.00016768,2]
[404485966,1770204639813,-1000.0,0.00016768,2]
[404485968,1770204639836,-500.0,0.00016768,2]
[404485970,1770204639848,-250.0,0.00016768,2]
[404485972,1770204639859,-250.0,0.00016768,2]
[404485974,1770204639870,-1000.0,0.00016768,2]
[404485976,1770204639881,-500.0,0.00016768,2]
[404485979,1770204639893,-250.0,0.00016768,2]
[404485981,1770204639904,-1000.0,0.00016768,2]
[404485983,1770204639915,-500.0,0.00016768,2]
[404485985,1770204639926,-250.0,0.00016768,2]
[404485987,1770204639937,-1000.0,0.00016768,2]
[404485989,1770204639948,-500.0,0.00016768,2]
[404485992,1770204639963,-250.0,0.00016768,2]
[404485994,1770204639975,-1000.0,0.00016768,2]
[404485997,1770204639986,-500.0,0.00016768,2]
[404485999,1770204639998,-250.0,0.00016768,2]
[404486001,1770204640009,-1000.0,0.00016768,2]
[404486003,1770204640020,-500.0,0.00016768,2]
[404486006,1770204640031,-1000.0,0.00016768,2]
[404486008,1770204640042,-500.0,0.00016768,2]
[404486010,1770204640053,-1000.0,0.00016768,2]
[404486012,1770204640063,-500.0,0.00016768,2]
[404486014,1770204640074,-500.0,0.00016768,2]
[404486017,1770204640085,-500.0,0.00016768,2]
[404486019,1770204640095,-500.0,0.00016768,2]
[404486021,1770204640106,-500.0,0.00016768,2]
[404486023,1770204640116,-500.0,0.00016768,2]
[404486025,1770204640128,-500.0,0.00016768,2]
[404486027,1770204640139,-500.0,0.00016768,2]
[404486030,1770204640150,-500.0,0.00016768,2]
[404486032,1770204640161,-500.0,0.00016768,2]
[404486034,1770204640172,-500.0,0.00016768,2]
[404486036,1770204640183,-500.0,0.00016768,2]
[404486038,1770204640193,-500.0,0.00016768,2]
[404486040,1770204640204,-215815.41034987,0.00016778,2]
[404486065,1770204640427,-6686.73368283,0.00016778,2]
[404486067,1770204640436,-151.0,0.000168,2]
[404486069,1770204640445,-151.0,0.000168,2]
[404486071,1770204640454,-151.0,0.000168,2]
[404486073,1770204640463,-288.4663402,0.00016836,2]
[404486075,1770204640472,-151.0,0.000169,2]
[404486077,1770204640481,-151.0,0.000169,2]
[404486079,1770204640490,-168.0,0.00016928,2]
[404486081,1770204640499,-67161.79997751,0.00016947,2]
[404486114,1770204646363,-500.0,0.00016768,2]
[404486115,1770204646374,-2176.48009157,0.00016947,2]
[404486116,1770204646386,-4016.7863432,0.00016947,2]
[404486139,1770204662431,-597.88837773,0.00016847,2]
[404486143,1770205313339,151.0,0.00039816,120]
[404486144,1770205313652,151.0,0.00039816,120]
[404486145,1770205313950,151.0,0.00039816,120]
[404486146,1770205563165,438.09636707,0.00013699,2]
[404486147,1770205589732,150.0,0.00039816,30]
[404486152,1770205811962,607.69417187,0.00030136,120]
[404486862,1770206193260,200.0,0.0003,120]
[404486864,1770206445937,389.904046,0.0003982,120]
[404486865,1770206567023,10000.01,0.00013,2]
[404486866,1770206567047,10000.01,0.00013,2]
[404486867,1770206567072,10000.01,0.00013,2]
[404486868,1770206567093,10000.01,0.00013,2]
[404486869,1770206567115,10000.01,0.00013,2]
[404486870,1770206567136,10000.01,0.00013,2]
[404486871,1770206567166,10000.01,0.00013,2]
[404486872,1770206567348,10000.01,0.00013,2]
[404486873,1770206567370,10000.01,0.00013,2]
[404486874,1770206567391,10000.01,0.00013,2]
[404486875,1770206567417,454706.45063733,0.00013,2]
[404486876,1770206567442,25000.0,0.00013,2]
[404486877,1770206570396,-903.0829404,0.00013,2]
[404486878,1770206574813,-1108.01250665,0.00013,2]
[404486879,1770206576812,-765.70509407,0.00013,2]
[404486880,1770206578205,-1000.0,0.00013,2]
[404486881,1770206579626,-662.89729949,0.00013,2]
[404486882,1770206582139,-389.41572401,0.00013,2]
[404486883,1770206582475,300.0,0.00012999,2]
[404486884,1770206584086,-208.04588896,0.00013,2]
[404486885,1770206591362,-315.97182897,0.00013,2]
[404486886,1770206596207,5000.0,0.00013,2]
[404486887,1770206597590,-209.6709009,0.00013,2]
[404486888,1770206599249,-245.59257985,0.00013,2]
[404486889,1770206601363,-181.27235969,0.00013,2]
[404486890,1770206608034,-196.75057058,0.00013,2]
[404486891,1770206614863,-286.21767235,0.00013,2]
[404486892,1770206617472,-359.97128875,0.00013,2]
[404486893,1770206619041,4148.70636153,0.00013,2]
[404486894,1770206623242,-407.89705289,0.00013,2]
[404486895,1770206630470,-599.19118033,0.00013,2]
[404486896,1770206639866,-220.73090711,0.00013,2]
[404486897,1770206641404,2200.6900066,0.00013,2]
[404486898,1770206642020,-198.67201306,0.00013,2]
[404486899,1770206642471,300.0,0.00012999,2]
[404486901,1770206646177,-212.47948319,0.00013,2]
[404486902,1770206648882,-500.0,0.00013,2]
[404486903,1770206649281,5000.0,0.00013,2]
[404486904,1770206650546,-7065.65003024,0.00013,2]
[404486905,1770206650790,-10000.01,0.00013,2]
[404486906,1770206651063,-10000.01,0.00013,2]
[404486907,1770206651319,-10000.01,0.00013,2]
[404486908,1770206651600,-10000.01,0.00013,2]
[404486909,1770206651816,-10000.01,0.00013,2]
[404486910,1770206651996,-10000.01,0.00013,2]
[404486911,1770206652097,-279.26909289,0.00013,2]
[404486912,1770206652197,-10000.01,0.00013,2]
[404486913,1770206653205,-10000.01,0.00013,2]
[404486914,1770206653319,-10000.01,0.00013,2]
[404486915,1770206654876,-164.55530776,0.00013,2]
[404486916,1770206656850,-205.46229997,0.00013,2]
[404486917,1770206658675,2849.029,0.00030137,120]
[404486918,1770206662753,-185.97834066,0.00013,2]
[404486919,1770206664601,4380.77642797,0.00013,2]
[404486920,1770206665453,-500.0,0.00013,2]
[404486921,1770206667651,-290.89669776,0.00013,2]
[404486922,1770206669149,-247.1592506,0.00013,2]
[404486923,1770206671108,-632.34070059,0.00013,2]
[404486924,1770206672566,413.23904638,0.00012999,2]
[404486925,1770206672603,500.0,0.00012999,2]
[404486926,1770206672638,473.41229137,0.00012999,2]
[404486927,1770206672678,500.0,0.00012999,2]
[404486928,1770206672719,500.0,0.00012999,2]
[404486929,1770206672838,500.0,0.00012999,2]
[404486930,1770206672875,500.0,0.00012999,2]
[404486931,1770206672909,283.17586615,0.00012999,2]
[404486932,1770206673106,-216.82413385,0.00012999,2]
[404486933,1770206673130,-18.79527165,0.00012999,2]
[404486934,1770206678524,-481.20472835,0.00012999,2]
[404486935,1770206678555,-500.0,0.00012999,2]
[404486936,1770206678586,-500.0,0.00012999,2]
[404486937,1770206678617,-2641.09302016,0.00013,2]
[404486938,1770206678686,-1755.41450298,0.00013,2]
[404486939,1770206678721,-10000.01,0.00013,2]
[404486940,1770206678758,-10000.01,0.00013,2]
[404486941,1770206678873,-301.32798694,0.00013,2]
[404486942,1770206678907,-10000.01,0.00013,2]
[404486943,1770206679050,-10000.01,0.00013,2]
[404486944,1770206680387,-528.00152235,0.00013,2]
[404486945,1770206682989,-198.0,0.00013,2]
[404486946,1770206684514,-206.55552103,0.00013,2]
[404486947,1770206686504,-294.34901173,0.00013,2]
[404486948,1770206688595,-303.01421165,0.00013,2]
[404486949,1770206691268,-304.73831557,0.0001287,2]
[404486950,1770206694700,-213.57554963,0.0001287,2]
[404486951,1770206698311,-166.73794428,0.0001287,2]
[404486952,1770206701980,-579.57397846,0.0001287,2]
[404486953,1770206703476,-173.11762635,0.0001287,2]
[404486954,1770206705718,-175.04847996,0.0001287,2]
[404486955,1770206708823,-3387.20810575,0.0001287,2]
[404486956,1770206708857,-300.0,0.00012999,2]
[404486957,1770206708893,-1094.0,0.00012999,2]
[404486958,1770206709001,-437.5937885,0.00013,2]
[404486959,1770206709017,-10000.01,0.00013,2]
[404486960,1770206709049,-10000.01,0.00013,2]
[404486961,1770206709181,-10000.01,0.00013,2]
[404486962,1770206709369,-10000.01,0.00013,2]
[404486963,1770206709619,-10000.01,0.00013,2]
[404486964,1770206709660,-10000.01,0.00013,2]
[404486965,1770206709770,-10000.01,0.00013,2]
[404486966,1770206709904,-10000.01,0.00013,2]
[404486967,1770206711923,-5000.0,0.00012741,2]
[404486968,1770206711969,-0.01,0.00013,2]
[404486969,1770206716931,-500.0,0.00013,2]
[404486970,1770206720142,-231.1123756,0.00013,2]
[404486971,1770206721599,-499.91892598,0.00013,2]
[404486972,1770206723171,-191.28207301,0.00013,2]
[404486973,1770206727000,-428.58351535,0.00013,2]
[404486974,1770206728540,-160.56,0.00013,2]
[404486975,1770206730732,-317.46580245,0.00013,2]
[404486976,1770206732907,-189.59126743,0.00013,2]
[404486977,1770206734491,-353.84901916,0.00013,2]
[404486978,1770206735933,-209.10330224,0.0001287,2]
[404486979,1770206738162,-164.31,0.0001287,2]
[404486980,1770206739726,-593.73929256,0.0001287,2]
[404486981,1770206744977,-271.11776611,0.0001287,2]
[404486982,1770206747519,-227.65888444,0.0001287,2]
[404486983,1770206749517,-500.0,0.0001287,2]
[404486984,1770206750236,-3034.07075465,0.0001287,2]
[404486985,1770206750270,-3931.8684907,0.00013,2]
[404486986,1770206750353,-10000.01,0.00013,2]
[404486987,1770206750479,-10000.01,0.00013,2]
[404486988,1770206750637,-10000.01,0.00013,2]
[404486989,1770206750767,-10000.01,0.00013,2]
[404486990,1770206750881,-10000.01,0.00013,2]
[404486991,1770206751004,-10000.01,0.00013,2]
[404486992,1770206751233,-10000.01,0.00013,2]
[404486993,1770206751582,-375.32271402,0.00013,2]
[404486994,1770206753691,-155.07506515,0.00013,2]
[404486995,1770206759391,-183.07225853,0.0001287,2]
[404486996,1770206761346,-193.37542497,0.0001287,2]
[404486997,1770206762867,-237.9117782,0.0001287,2]
[404486998,1770206766573,-180.68833043,0.00012741,2]
[404486999,1770206772807,-4819.31166957,0.00012741,2]
[404487000,1770206772847,-361.38666086,0.0001287,2]
[404487001,1770206772963,-625.49742798,0.0001287,2]
[404487002,1770206772991,-300.0,0.00012999,2]
[404487003,1770206773025,-228.5642797,0.00012999,2]
[404487004,1770206773055,-500.0,0.00012999,2]
[404487005,1770206773084,-500.0,0.00012999,2]
[404487006,1770206773111,-500.0,0.00012999,2]
[404487007,1770206773139,-500.0,0.00012999,2]
[404487008,1770206773167,-500.0,0.00012999,2]
[404487009,1770206773196,-500.0,0.00012999,2]
[404487010,1770206773225,-500.0,0.00012999,2]
[404487011,1770206773254,-191.88658464,0.00012999,2]
[404487012,1770206773553,-308.11341536,0.00012999,2]
[404487013,1770206773584,-458.91890094,0.00012999,2]
[404487014,1770206773612,-280.3261451,0.00012999,2]
[404487015,1770206773641,-500.0,0.00012999,2]
[404487016,1770206773671,-500.0,0.00012999,2]
[404487017,1770206773699,-500.0,0.00012999,2]
[404487018,1770206773728,-500.0,0.00012999,2]
[404487019,1770206773987,-308.11341536,0.00013,2]
[404487020,1770206774010,-3905.2930772,0.00013,2]
[404487021,1770206774042,-10000.01,0.00013,2]
[404487022,1770206774057,-10000.01,0.00013,2]
[404487023,1770206774071,-10000.01,0.00013,2]
[404487024,1770206774096,-10000.01,0.00013,2]
[404487025,1770206774110,-10000.01,0.00013,2]
[404487026,1770206774141,-10000.01,0.00013,2]
[404487027,1770206775599,-10000.01,0.00013,2]
[404487028,1770206775731,-10000.01,0.00013,2]
[404487029,1770206777092,-511.10142396,0.00013,2]
[404487030,1770206782447,-162.23311984,0.0001287,2]
[404487031,1770206785848,-199.06188292,0.0001287,2]
[404487032,1770206791162,-332.32202599,0.00012741,2]
[404487033,1770206798072,-242.775541,0.00012741,2]
[404487034,1770206799995,-229.4264115,0.00012741,2]
[404487035,1770206808513,-500.0,0.00012741,2]
[404487036,1770206808966,-3052.21830677,0.00012741,2]
[404487037,1770206809012,-3895.57338646,0.0001287,2]
[404487038,1770206809086,-743.13161078,0.0001287,2]
[404487039,1770206809116,-500.0,0.00012999,2]
[404487040,1770206809150,-500.0,0.00012999,2]
[404487041,1770206809179,-500.0,0.00012999,2]
[404487042,1770206809209,-500.0,0.00012999,2]
[404487043,1770206809237,-500.0,0.00012999,2]
[404487044,1770206809267,-500.0,0.00012999,2]
[404487045,1770206809295,-439.6612261,0.00012999,2]
[404487046,1770206809324,-500.0,0.00012999,2]
[404487047,1770206809496,-634.42432624,0.00013,2]
[404487048,1770206809509,-10000.01,0.00013,2]
[404487049,1770206809525,-10000.01,0.00013,2]
[404487050,1770206809557,-3212.24318286,0.00013,2]
[404487051,1770206809609,-3575.52363428,0.00013,2]
[404487052,1770206810061,-254.49,0.00013,2]
[404487053,1770206810083,-197.86411661,0.00013,2]
[404487054,1770206814390,-353.90964101,0.00013,2]
[404487055,1770206817556,-160.58942726,0.00013,2]
[404487056,1770206818224,-10000.01,0.00013,2]
[404487057,1770206818410,-10000.01,0.00013,2]
[404487058,1770206819718,-314.02165934,0.00013,2]
[404487059,1770206822623,-169.23182511,0.00013,2]
[404487060,1770206825444,-193.1485395,0.0001287,2]
[404487061,1770206831876,-158.49197742,0.0001287,2]
[404487062,1770206839963,-222.28297814,0.00012741,2]
[404487063,1770206848421,-239.9738334,0.00012741,2]
[404487064,1770206850259,-339.41057274,0.00012741,2]
[404487065,1770206851752,-230.08900767,0.00012741,2]
[404487066,1770206853279,-500.0,0.00012741,2]
[404487067,1770206854800,-187.88248611,0.00012741,2]
[404487068,1770206856966,-312.35273166,0.00012741,2]
[404487069,1770206857605,-2968.00839028,0.00012741,2]
[404487070,1770206857641,-4063.99321944,0.0001287,2]
[404487071,1770206857704,-584.36626364,0.0001287,2]
[404487072,1770206857731,-300.0,0.00012999,2]
[404487073,1770206857779,-8231.27747272,0.00013,2]
[404487074,1770206857812,-10000.01,0.00013,2]
[404487075,1770206858007,-10000.01,0.00013,2]
[404487076,1770206858136,-10000.01,0.00013,2]
[404487077,1770206858278,-10000.01,0.00013,2]
[404487078,1770206862383,-210.87036275,0.00013,2]
[404487079,1770206864122,-264.3805945,0.00013,2]
[404487080,1770206865601,-156.75318363,0.00013,2]
[404487081,1770206867678,-10000.01,0.00013,2]
[404487082,1770206867834,-10000.01,0.00013,2]
[404487083,1770206868944,-227.4593225,0.0001287,2]
[404487084,1770206871094,-193.81392878,0.0001287,2]
[404487085,1770206872632,-178.66155229,0.0001287,2]
[404487086,1770206874606,-300.0,0.0001287,2]
[404487087,1770206879615,-326.46175366,0.00012741,2]
[404487088,1770206879920,182.24,8.972e-05,2]
[404487089,1770206881715,-151.50728891,0.00012741,2]
[404487090,1770206883699,-182.62868097,0.00012741,2]
[404487091,1770206884253,-4339.40227646,0.00012741,2]
[404487092,1770206884289,-1321.20544708,0.0001287,2]
[404487093,1770206884744,-794.39934226,0.00012614,2]
[404487094,1770206884775,-2778.85974935,0.0001287,2]
[404487095,1770206884951,-300.0,0.00012999,2]
[404487096,1770206885020,-2253.49181678,0.00013,2]
[404487097,1770206885143,-10000.01,0.00013,2]
[404487098,1770206885477,-10000.01,0.00013,2]
[404487099,1770206885741,-178.02466455,0.00013,2]
[404487100,1770206888236,-10000.01,0.00013,2]
[404487101,1770206888402,-160.9282218,0.00013,2]
[404487102,1770206889736,-10000.01,0.00013,2]
[404487103,1770206890410,-153.17535962,0.00013,2]
[404487104,1770206893029,-1590.19435344,0.0001287,2]
[404487105,1770206895115,-720.0,0.0001287,2]
[404487106,1770206896695,-2689.80564656,0.0001287,2]
[404487107,1770206896718,-49.22998004,0.00013,2]
[404487108,1770206898239,-1197.41233125,0.00013,2]
[404487109,1770206900417,-496.09880144,0.0001287,2]
[404487110,1770206904802,-477.59670468,0.0001287,2]
[404487111,1770206908085,-214.51329532,0.0001287,2]
[404487112,1770206910207,-507.89,0.0001287,2]
[404487113,1770206912363,-409.58732534,0.0001287,2]
[404487114,1770206912399,-2894.31387322,0.0001287,2]
[404487115,1770206912427,-157.50915214,0.00012999,2]
[404487116,1770206912483,-3896.36394928,0.00013,2]
[404487117,1770206912523,-10000.01,0.00013,2]
[404487118,1770206912778,-10000.01,0.00013,2]
[404487119,1770206912924,-10000.01,0.00013,2]
[404487120,1770206913095,-10000.01,0.00013,2]
[404487121,1770206913220,-10000.01,0.00013,2]
[404487122,1770206913340,-10000.01,0.00013,2]
[404487123,1770206913475,-10000.01,0.00013,2]
[404487124,1770206913595,-10000.01,0.00013,2]
[404487125,1770206914334,-228.6385523,0.00013,2]
[404487126,1770206915265,310.00552291,0.00012,2]
[404487127,1770206915889,-204.1551729,0.0001287,2]
[404487128,1770206917877,-225.37,0.0001287,2]
[404487129,1770206920764,-219.10013129,0.0001287,2]
[404487130,1770206922183,-368.11043381,0.0001287,2]
[404487131,1770206924830,-179.44107587,0.00012741,2]
[404487132,1770206926810,-1128.7190876,0.00012741,2]
[404487133,1770206928915,-160.1222725,0.00012741,2]
[404487134,1770206930530,-3531.71756403,0.00012741,2]
[404487135,1770206930566,-2936.57487194,0.0001287,2]
[404487136,1770206930635,-1046.68939006,0.0001287,2]
[404487137,1770206930676,-7906.63121988,0.00013,2]
[404487138,1770206930748,-10000.01,0.00013,2]
[404487139,1770206930885,-543.0,0.00012614,2]
[404487140,1770206930917,-8914.01,0.00013,2]
[404487141,1770206931099,-10000.01,0.00013,2]
[404487142,1770206931127,-527.08830818,0.00013,2]
[404487143,1770206932092,-10000.01,0.00013,2]
[404487144,1770206932234,-10000.01,0.00013,2]
[404487145,1770206932359,-10000.01,0.00013,2]
[404487146,1770206932484,-10000.01,0.00013,2]
[404487147,1770206933888,-472.91169182,0.00013,2]
[404487148,1770206935394,-1000.0,0.00013,2]
[404487149,1770206937429,-523.095474,0.00013,2]
[404487150,1770206940067,-176.24550484,0.0001287,2]
[404487151,1770206941494,-407.76396207,0.0001287,2]
[404487152,1770206942945,-604.51097257,0.0001287,2]
[404487153,1770206944828,-400.92318337,0.0001287,2]
[404487154,1770206946311,-549.31939467,0.0001287,2]
[404487155,1770206948309,-1236.47108161,0.00012741,2]
[404487156,1770206949850,-352.9441947,0.00012329,2]
[404487157,1770206952679,-73.6658053,0.00012329,2]
[404487158,1770206952707,-3763.52891839,0.00012741,2]
[404487159,1770206952753,-2325.62055262,0.0001287,2]
[404487160,1770206952829,-535.61642986,0.0001287,2]
[404487161,1770206952858,-300.0,0.00012999,2]
[404487162,1770206952885,-283.0,0.00012999,2]
[404487163,1770206952969,-7762.77714028,0.00013,2]
[404487164,1770206953209,-10000.01,0.00013,2]
[404487165,1770206953335,-10000.01,0.00013,2]
[404487166,1770206953470,-10000.01,0.00013,2]
[404487167,1770206953594,-10000.01,0.00013,2]
[404487168,1770206953744,-10000.01,0.00013,2]
[404487169,1770206953877,-10000.01,0.00013,2]
[404487170,1770206954038,-10000.01,0.00013,2]
[404487171,1770206954584,-300.0,0.00013,2]
[404487172,1770206955685,-10000.01,0.00013,2]
[404487173,1770206955993,-175.92076688,0.00013,2]
[404487174,1770206957497,-300.0,0.00013,2]
[404487180,1770206960686,-593.74174439,0.00012329,2]
[404487181,1770206961775,-5000.0,0.00012205,2]
[404487182,1770206961807,-0.01,0.00012329,2]
[404487183,1770206961876,-1894.85825561,0.00012329,2]
[404487184,1770206961912,-6210.29348878,0.00013,2]
[404487185,1770206962012,-10000.01,0.00013,2]
[404487186,1770206962152,-10000.01,0.00013,2]
[404487187,1770206962297,-10000.01,0.00013,2]
[404487188,1770206962452,-10000.01,0.00013,2]
[404487189,1770206962597,-10000.01,0.00013,2]
[404487190,1770206962912,-10000.01,0.00013,2]
[404487191,1770206963071,-10000.01,0.00013,2]
[404487192,1770206963241,-500.0,0.00013,2]
[404487193,1770206964824,-154.46235567,0.00013,2]
[404487194,1770206969415,2073.84,0.00012329,2]
[404487195,1770206971447,-465.47032528,0.0001287,2]
[404487196,1770206974198,212.42283457,0.00012457,2]
[404487197,1770206974430,-447.17314428,0.0001287,2]
[404487198,1770206975857,-153.22554625,0.0001287,2]
[404487199,1770206978019,-291.92606223,0.0001287,2]
[404487200,1770206979702,5000.0,0.00012741,2]
[404487201,1770206979791,1728.2,0.00012329,2]
[404487202,1770206980498,-387.62315187,0.0001287,2]
[404487203,1770206983326,-2000.00837387,0.0001287,2]
[404487204,1770206983515,250.0,0.00012034,2]
[404487205,1770206987495,-155.9815711,0.0001287,2]
[404487206,1770206988139,735.54716543,0.00012741,2]
[404487207,1770206989135,-4264.45283457,0.00012741,2]
[404487208,1770206990112,-439.95560868,0.0001287,2]
[404487209,1770206990185,1440.16,0.00012329,2]
[404487210,1770206992951,-194.22311622,0.0001287,2]
[404487211,1770206995627,-190.01813508,0.0001287,2]
[404487212,1770206998348,-274.39496514,0.0001287,2]
[404487213,1770206998372,-348.96336214,0.00013,2]
[404487214,1770207000439,30.94433086,0.00012329,2]
[404487215,1770207000462,1169.19566914,0.00012329,2]
[404487216,1770207001107,-605.0,0.00013,2]
[404487217,1770207003872,-555.98186492,0.0001287,2]
[404487218,1770207007505,-462.38248518,0.0001287,2]
[404487219,1770207009522,-500.0,0.0001287,2]
[404487220,1770207010817,1000.11,0.00012329,2]
[404487221,1770207011138,5000.0,0.00012741,2]
[404487222,1770207012013,-280.56335171,0.0001287,2]
[404487223,1770207014258,-178.05181588,0.0001287,2]
[404487224,1770207016905,-485.40296749,0.0001287,2]
[404487225,1770207018351,-500.0,0.0001287,2]
[404487226,1770207018878,2830.70433086,0.00012741,2]
[404487227,1770207018914,2169.29566914,0.00012741,2]
[404487228,1770207021235,833.43,0.00012329,2]
[404487229,1770207031619,694.52,0.00012329,2]
[404487246,1770207034393,5000.0,0.00012741,2]
[404487251,1770207038169,-2037.61751482,0.0001287,2]
[404487252,1770207038179,-1200.0,0.00012998,2]
[404487253,1770207038188,-300.0,0.00012999,2]
[404487254,1770207038198,-300.0,0.00012999,2]
[404487255,1770207038207,-300.0,0.00012999,2]
[404487256,1770207038216,-300.0,0.00012999,2]
[404487257,1770207038226,-145197.68531591,0.00013,2]
[404487258,1770207038237,-75641.21412324,0.00013,2]
[404487285,1770207040513,-623.35832728,0.0001295,2]
[404487287,1770207040522,-4646.38201689,0.00013,2]
[404487432,1770207042015,-3e-08,0.00013,2]
[404487436,1770207042055,578.77,0.00012329,2]
[404487454,1770207042231,723.99433086,0.00012741,2]
[404487458,1770207042252,4276.00566914,0.00012741,2]
[404487864,1770207046109,-13148.61685488,0.00013,2]
[404487928,1770207046478,-1075.6164,0.00013,2]
[404488333,1770207052371,482.31,0.00012329,2]
[404488334,1770207057771,5000.0,0.00012741,2]
[404488335,1770207062940,241.69433086,0.00012329,2]
[404488336,1770207062963,160.22566914,0.00012329,2]
[404488337,1770207065654,5000.0,0.00012741,2]
[404488338,1770207073679,334.94,0.00012329,2]
[404488339,1770207080571,4504.84433086,0.00012741,2]
[404488340,1770207080596,495.15566914,0.00012741,2]
[404488341,1770207084359,279.11,0.00012329,2]